bitfinex/quotes_BTCUSD_20251102
["timestamp","ask_amount","ask_price","bid_price","bid_amount"]
[1762044130572,0.19765467,110190.0,110180.0,0.05809895]
[1762044130794,0.20336467,110190.0,110180.0,0.03534895]
[1762044131930,0.59559289,110190.0,110180.0,0.03534895]
[1762044132126,0.20336467,110190.0,110180.0,0.05809895]
[1762044133672,0.20336467,110190.0,110180.0,0.03534895]
[1762044133869,0.20336467,110190.0,110180.0,0.05809895]
[1762044135586,0.59559289,110190.0,110180.0,0.03534895]
[1762044135786,0.61899289,110190.0,110180.0,0.00726895]
[1762044136877,0.61899289,110190.0,110180.0,0.00226895]
[1762044137636,0.61899289,110190.0,110180.0,0.00326895]
[1762044139569,0.64627572,110190.0,110180.0,0.00326895]
[1762044140390,0.62287572,110190.0,110180.0,0.01891895]
[1762044141030,0.64627572,110190.0,110180.0,0.00326895]
[1762044141244,0.62287572,110190.0,110180.0,0.00326895]
[1762044142122,0.64574572,110190.0,110180.0,0.00326895]
[1762044146191,0.64574572,110190.0,110180.0,0.00126895]
[1762044146546,0.64574572,110190.0,110180.0,0.00026895]
[1762044146547,0.64874572,110190.0,110180.0,0.00026895]
[1762044148047,0.64974572,110190.0,110180.0,0.00026895]
[1762044149932,0.60972572,110190.0,110180.0,0.00026895]
[1762044150251,0.64854572,110190.0,110180.0,0.00026895]
[1762044150456,0.64954572,110190.0,110180.0,0.00026895]
[1762044150639,0.2563175,110190.0,110180.0,0.00026895]
[1762044150865,0.64854572,110190.0,110180.0,0.00026895]
[1762044151286,0.64954572,110190.0,110180.0,0.00026895]
[1762044151521,0.64954572,110190.0,110180.0,0.00126895]
[1762044151921,0.64654572,110190.0,110180.0,0.00126895]
[1762044152376,0.64554572,110190.0,110180.0,0.00126895]
[1762044152756,0.64654572,110190.0,110180.0,0.00126895]
[1762044152966,0.64554572,110190.0,110180.0,0.00126895]
[1762044154920,0.64654572,110190.0,110180.0,0.00126895]
[1762044155379,0.64554572,110190.0,110180.0,0.00126895]
[1762044155900,0.64654572,110190.0,110180.0,0.00126895]
[1762044157429,0.64554572,110190.0,110180.0,0.00126895]
[1762044158215,0.64654572,110190.0,110180.0,0.00126895]
[1762044158621,0.64554572,110190.0,110180.0,0.00126895]
[1762044158817,0.64654572,110190.0,110180.0,0.00126895]
[1762044160011,0.64554572,110190.0,110180.0,0.00126895]
[1762044160236,0.64654572,110190.0,110180.0,0.00126895]
[1762044161019,0.64554572,110190.0,110180.0,0.00126895]
[1762044165183,0.64654572,110190.0,110180.0,0.00126895]
[1762044167389,0.64554572,110190.0,110180.0,0.00126895]
[1762044167582,0.64654572,110190.0,110180.0,0.00126895]
[1762044168014,0.64554572,110190.0,110180.0,0.00126895]
[1762044172355,0.66513305,110190.0,110180.0,0.00126895]
[1762044173032,0.66613305,110190.0,110180.0,0.00126895]
[1762044174118,0.66513305,110190.0,110180.0,0.00126895]
[1762044174470,0.66613305,110190.0,110180.0,0.00126895]
[1762044177898,0.66513305,110190.0,110180.0,0.00126895]
[1762044178102,0.66613305,110190.0,110180.0,0.00126895]
[1762044179588,0.66513305,110190.0,110180.0,0.00126895]
[1762044180450,0.66613305,110190.0,110180.0,0.00126895]
[1762044180685,0.27290483,110190.0,110180.0,0.00126895]
[1762044180815,0.66513305,110190.0,110180.0,0.00126895]
[1762044182225,0.27290483,110190.0,110180.0,0.00126895]
[1762044182443,0.66513305,110190.0,110180.0,0.00126895]
[1762044183330,0.2304475,110190.0,110180.0,0.02900895]
[1762044183543,0.60672572,110190.0,110180.0,0.05318895]
[1762044183766,0.62246572,110190.0,110180.0,0.05318895]
[1762044184185,0.2144975,110190.0,110180.0,0.07361043]
[1762044184437,0.2087875,110190.0,110180.0,0.05218895]
[1762044184626,0.2087875,110190.0,110180.0,0.05318895]
[1762044185162,0.2087875,110190.0,110180.0,0.05518895]
[1762044194767,0.2302375,110190.0,110180.0,0.05518895]
[1762044195579,0.2302375,110190.0,110180.0,0.03100895]
[1762044201636,0.64717283,110190.0,110180.0,0.00326895]
[1762044211030,0.64717283,110190.0,110180.0,0.01991895]
[1762044211031,0.62250283,110190.0,110180.0,0.01991895]
[1762044211458,0.62250283,110190.0,110180.0,0.03151895]
[1762044212278,0.62250283,110190.0,110180.0,0.05616895]
[1762044213880,0.62250283,110190.0,110180.0,0.03151895]
[1762044216538,0.62250283,110190.0,110180.0,0.05616895]
[1762044218869,0.2087875,110190.0,110180.0,0.05616895]
[1762044222464,0.2144975,110190.0,110180.0,0.05616895]
[1762044226309,0.2306675,110190.0,110180.0,0.05616895]
[1762044227324,0.2144975,110190.0,110180.0,0.05616895]
[1762044234365,0.2306675,110190.0,110180.0,0.03151895]
[1762044234975,0.62293283,110190.0,110180.0,0.03151895]
[1762044253396,0.62300555,110190.0,110180.0,0.03151895]
[1762044261728,0.62300555,110190.0,110180.0,0.05494895]
[1762044263015,0.60683555,110190.0,110180.0,0.05494895]
[1762044263243,0.60683555,110190.0,110180.0,0.23647009]
[1762044264605,0.60683555,110190.0,110180.0,0.05494895]
[1762044266177,0.2087875,110190.0,110180.0,0.447287]
[1762044266358,0.2087875,110190.0,110180.0,0.23647009]
[1762044269171,0.02728283,110190.0,110180.0,0.3226809]
[1762044269373,0.2087875,110190.0,110180.0,0.3226809]
[1762044274420,0.02728283,110190.0,110180.0,0.3226809]
[1762044274598,0.2087875,110190.0,110180.0,0.3226809]
[1762044281292,0.2087875,110190.0,110180.0,0.14115976]
[1762044284012,0.2087875,110190.0,110180.0,0.15931187]
[1762044284262,0.2087875,110190.0,110180.0,0.34083301]
[1762044284468,0.2087875,110190.0,110180.0,0.3226809]
[1762044288376,0.2087875,110190.0,110180.0,0.14115976]
[1762044289224,0.2087875,110190.0,110180.0,0.15931187]
[1762044289427,0.2087875,110190.0,110180.0,0.34083301]
[1762044289628,0.2087875,110190.0,110180.0,0.41249991]
[1762044289867,0.2087875,110190.0,110180.0,0.3226809]
[1762044290218,0.02728283,110190.0,110180.0,0.3226809]
[1762044291639,0.2087875,110190.0,110180.0,0.3226809]
[1762044292248,0.02728283,110190.0,110180.0,0.3226809]
[1762044292655,0.2087875,110190.0,110180.0,0.3226809]
[1762044297585,0.2087875,110190.0,110180.0,0.14115976]
[1762044297788,0.2087875,110190.0,110180.0,0.15931187]
[1762044298062,0.2087875,110190.0,110180.0,0.34083301]
[1762044298347,0.2087875,110190.0,110180.0,0.3226809]
[1762044299657,0.2087875,110190.0,110180.0,0.14115976]
[1762044299870,0.2087875,110190.0,110180.0,0.34083301]
[1762044300061,0.2087875,110190.0,110180.0,0.3226809]
[1762044305458,0.02728283,110190.0,110180.0,0.3226809]
[1762044305687,0.2087875,110190.0,110180.0,0.3226809]
[1762044305919,0.02728283,110190.0,110180.0,0.3226809]
[1762044306380,0.2087875,110190.0,110180.0,0.3226809]
[1762044307062,0.02728283,110190.0,110180.0,0.3226809]
[1762044307273,0.2087875,110190.0,110180.0,0.3226809]
[1762044307887,0.02728283,110190.0,110180.0,0.3226809]
[1762044308352,0.2087875,110190.0,110180.0,0.3226809]
[1762044308782,0.02728283,110190.0,110180.0,0.3226809]
[1762044309240,0.19777231,110210.0,110190.0,0.18150022]
[1762044309463,0.1814882,110200.0,110190.0,0.23505068]
[1762044309676,0.0272806,110200.0,110190.0,0.19338022]
[1762044309886,0.0272806,110200.0,110190.0,0.22773068]
[1762044310118,0.0272806,110200.0,110190.0,0.20958022]
[1762044310337,0.2087688,110200.0,110190.0,0.23310022]
[1762044311447,0.2087688,110200.0,110190.0,0.23410022]
[1762044311903,0.2087688,110200.0,110190.0,0.0526]
[1762044312325,0.2087688,110200.0,110190.0,0.23410467]
[1762044312741,0.2087688,110200.0,110190.0,0.0526]
[1762044312954,0.2087688,110200.0,110190.0,0.23410467]
[1762044313157,0.2087688,110200.0,110190.0,0.0576]
[1762044313570,0.2087688,110200.0,110190.0,0.0566]
[1762044314020,0.2087688,110200.0,110190.0,0.24010467]
[1762044319553,0.0272806,110200.0,110190.0,0.24010467]
[1762044320184,0.2087688,110200.0,110190.0,0.24010467]
[1762044332128,0.2087688,110200.0,110190.0,0.0586]
[1762044332570,0.2087688,110200.0,110190.0,0.24010467]
[1762044333642,0.2087688,110200.0,110190.0,0.0586]
[1762044334270,0.2087688,110200.0,110190.0,0.24010467]
[1762044337958,0.2087688,110200.0,110190.0,0.0586]
[1762044339354,0.2087688,110200.0,110190.0,0.24010467]
[1762044341213,0.2087688,110200.0,110190.0,0.0586]
[1762044343383,0.2087688,110200.0,110190.0,0.24010467]
[1762044343781,0.2087688,110200.0,110190.0,0.0586]
[1762044345094,0.2087688,110200.0,110190.0,0.24010467]
[1762044350445,0.2087688,110200.0,110190.0,0.0586]
[1762044351225,0.2087688,110200.0,110190.0,0.24010467]
[1762044362621,0.2087688,110200.0,110190.0,0.0586]
[1762044363046,0.2087688,110200.0,110190.0,0.24010467]
[1762044363959,0.33775606,110220.0,110200.0,0.18148068]
[1762044364188,0.6902127,110220.0,110210.0,0.02821]
[1762044364390,0.6902127,110220.0,110210.0,0.05293]
[1762044364609,0.67060606,110220.0,110210.0,0.05293]
[1762044364819,0.69788383,110220.0,110210.0,0.05293]
[1762044365624,0.69788383,110220.0,110210.0,0.05393]
[1762044366974,0.69788383,110220.0,110210.0,0.05293]
[1762044367163,0.69788383,110220.0,110210.0,0.05393]
[1762044368003,0.69788383,110220.0,110210.0,0.05593]
[1762044370030,0.34873304,110220.0,110210.0,0.10765232]
[1762044370250,0.34873304,110220.0,110210.0,0.28912405]
[1762044370445,0.34873304,110220.0,110210.0,0.05593]
[1762044370601,0.34873304,110220.0,110210.0,0.07407717]
[1762044370824,0.34873304,110220.0,110210.0,0.2555489]
[1762044371041,0.34873304,110220.0,110210.0,0.23740173]
[1762044371204,0.34873304,110220.0,110210.0,0.05593]
[1762044371414,0.34873304,110220.0,110210.0,0.07407717]
[1762044373131,0.34873304,110220.0,110210.0,0.05593]
[1762044380813,0.74077118,110220.0,110210.0,0.05593]
[1762044391762,0.73577118,110220.0,110210.0,0.05593]
[1762044391972,0.60077118,110220.0,110210.0,0.05593]
[1762044418302,0.20873304,110220.0,110210.0,0.05593]
[1762044418443,0.60077118,110220.0,110210.0,0.05593]
[1762044419836,0.60077118,110220.0,110210.0,0.23740173]
[1762044420045,0.20873304,110220.0,110210.0,0.23740173]
[1762044420256,0.02727777,110220.0,110210.0,0.23740173]
[1762044420537,0.20873304,110220.0,110210.0,0.23740173]
[1762044421805,0.20873304,110220.0,110210.0,0.05593]
[1762044422018,0.60077118,110220.0,110210.0,0.07407717]
[1762044423079,0.60077118,110220.0,110210.0,0.05593]
[1762044423703,0.20873304,110220.0,110210.0,0.23740173]
[1762044423927,0.60077118,110220.0,110210.0,0.05593]
[1762044424135,0.60077118,110220.0,110210.0,0.23740173]
[1762044424390,0.60077118,110220.0,110210.0,0.05593]
[1762044424618,0.60077118,110220.0,110210.0,0.23740173]
[1762044425463,0.60077118,110220.0,110210.0,0.05593]
[1762044435409,0.20873304,110220.0,110210.0,0.05593]
[1762044440521,0.20873304,110220.0,110210.0,0.23740173]
[1762044440757,0.20873304,110220.0,110210.0,0.05593]
[1762044441501,0.20873304,110220.0,110210.0,0.23740173]
[1762044442526,0.20873304,110220.0,110210.0,0.05593]
[1762044444398,0.60080291,110220.0,110210.0,0.05593]
[1762044444889,4.04037278,110220.0,110210.0,0.003]
[1762044445107,4.05999345,110220.0,110210.0,0.003]
[1762044445744,0.1814882,110200.0,110190.0,0.01188]
[1762044445924,0.57355807,110200.0,110190.0,0.03486]
[1762044446145,0.57355807,110200.0,110190.0,0.05045]
[1762044446355,0.600838,110200.0,110190.0,0.05045]
[1762044446932,0.600838,110200.0,110190.0,0.05645]
[1762044447144,0.606548,110200.0,110190.0,0.05645]
[1762044448013,0.606548,110200.0,110190.0,0.05845]
[1762044457753,0.622358,110200.0,110190.0,0.05845]
[1762044466392,0.606548,110200.0,110190.0,0.05845]
[1762044472018,0.622358,110200.0,110190.0,0.05845]
[1762044477682,0.606548,110200.0,110190.0,0.05845]
[1762044479141,0.622358,110200.0,110190.0,0.05845]
[1762044482871,0.647138,110200.0,110190.0,0.008]
[1762044483688,0.647138,110200.0,110190.0,0.002]
[1762044483916,0.18150467,110190.0,110180.0,0.12215976]
[1762044484338,0.18150467,110190.0,110180.0,0.13744976]
[1762044484565,0.20878666,110190.0,110180.0,0.13744976]
[1762044484993,0.23060666,110190.0,110180.0,0.13744976]
[1762044485215,0.23060666,110190.0,110180.0,0.14144976]
[1762044485430,0.23060666,110190.0,110180.0,0.14244976]
[1762044485644,0.62267653,110190.0,110180.0,0.11836976]
[1762044486128,0.23060666,110190.0,110180.0,0.14244976]
[1762044486367,0.21449666,110190.0,110180.0,0.14244976]
[1762044491772,0.21449666,110190.0,110180.0,0.16973214]
[1762044494412,0.03299199,110190.0,110180.0,0.35125328]
[1762044494626,0.21449666,110190.0,110180.0,0.35125328]
[1762044495489,0.60675662,110190.0,110180.0,0.35125328]
[1762044496617,0.21449666,110190.0,110180.0,0.35125328]
[1762044497227,0.20878666,110190.0,110180.0,0.35125328]
[1762044498513,0.60104662,110190.0,110180.0,0.35125328]
[1762044500882,0.57376463,110190.0,110180.0,0.3239709]
[1762044501553,0.57376463,110190.0,110180.0,0.14244976]
[1762044501786,0.57376463,110190.0,110180.0,0.3239709]
[1762044505702,0.57376463,110190.0,110180.0,0.14244976]
[1762044506663,0.57376463,110190.0,110180.0,0.3239709]
[1762044514987,0.57376463,110190.0,110180.0,0.14244976]
[1762044523327,0.57376463,110190.0,110180.0,0.3239709]
[1762044528885,0.57376463,110190.0,110180.0,0.14244976]
[1762044538938,0.59554463,110190.0,110180.0,0.05623895]
[1762044541678,0.59554463,110190.0,110180.0,0.00526895]
[1762044541888,0.61856463,110190.0,110180.0,0.00526895]
[1762044542096,1.01082459,110190.0,110180.0,0.00526895]
[1762044543002,0.61856463,110190.0,110180.0,0.00526895]
[1762044543216,1.21182459,110190.0,110180.0,0.00526895]
[1762044543654,1.23911055,110190.0,110180.0,0.00526895]
[1762044544092,4.25873552,110190.0,110180.0,0.00526895]
[1762044544309,4.23911055,110190.0,110180.0,0.00426895]
[1762044544452,4.23911055,110190.0,110180.0,0.00526895]
[1762044545031,4.23911055,110190.0,110180.0,0.00126895]
[1762044545143,4.23911055,110190.0,110180.0,0.00226895]
[1762044546570,4.43911055,110190.0,110180.0,0.00226895]
[1762044546773,4.43911055,110190.0,110180.0,0.00204813]
[1762044546981,4.43911055,110190.0,110180.0,0.00226895]
[1762044554417,4.43911055,110190.0,110180.0,0.00126895]
[1762044554786,4.44111055,110190.0,110180.0,0.00126895]
[1762044555216,4.44111055,110190.0,110180.0,0.00026895]
[1762044557386,4.44155673,110190.0,110180.0,0.00026895]
[1762044560354,4.78155673,110190.0,110180.0,0.00026895]
[1762044565400,4.80114581,110190.0,110180.0,0.00026895]
[1762044571699,4.80116254,110190.0,110180.0,0.00026895]
[1762044572333,4.80612905,110190.0,110180.0,0.00026895]
[1762044574866,4.80614158,110190.0,110180.0,0.00026895]
[1762044577748,4.82317125,110190.0,110180.0,0.00026895]
[1762044579402,4.83217125,110190.0,110180.0,0.00026895]
[1762044583791,4.85669418,110190.0,110180.0,0.00026895]
[1762044584810,4.81255291,110190.0,110180.0,0.00026895]
[1762044584970,4.85668277,110190.0,110180.0,0.00026895]
[1762044586022,4.89286505,110190.0,110180.0,0.00026895]
[1762044587210,4.89286505,110190.0,110180.0,1e-08]
[1762044587561,4.92553011,110190.0,110180.0,1e-08]
[1762044588126,4.90710467,110190.0,110180.0,1e-08]
[1762044589340,4.9213442,110190.0,110180.0,1e-08]
[1762044594185,4.92133019,110190.0,110180.0,1e-08]
[1762044596760,4.12736409,110190.0,110180.0,1e-08]
[1762044596967,4.91233019,110190.0,110180.0,1e-08]
[1762044597180,4.87614791,110190.0,110180.0,1e-08]
[1762044598856,4.86190829,110190.0,110180.0,1e-08]
[1762044602028,4.87090829,110190.0,110180.0,1e-08]
[1762044607552,4.87091357,110190.0,110180.0,1e-08]
[1762044608337,4.86191357,110190.0,110180.0,1e-08]
[1762044613260,4.87091357,110190.0,110180.0,1e-08]
[1762044614588,4.08594747,110190.0,110180.0,1e-08]
[1762044614811,4.47843052,110190.0,110180.0,1e-08]
[1762044615027,4.87091357,110190.0,110180.0,1e-08]
[1762044615657,4.85667404,110190.0,110180.0,1e-08]
[1762044617450,4.85668348,110190.0,110180.0,1e-08]
[1762044617698,4.83966254,110190.0,110180.0,1e-08]
[1762044619168,4.8723276,110190.0,110180.0,1e-08]
[1762044619784,4.8633276,110190.0,110180.0,1e-08]
[1762044636019,4.8623276,110190.0,110180.0,1e-08]
[1762044636224,4.8633276,110190.0,110180.0,1e-08]
[1762044636848,4.8623276,110190.0,110180.0,1e-08]
[1762044637267,4.86334949,110190.0,110180.0,1e-08]
[1762044648881,4.86335136,110190.0,110180.0,1e-08]
[1762044651035,4.87235136,110190.0,110180.0,1e-08]
[1762044652132,4.88659108,110190.0,110180.0,1e-08]
[1762044657147,4.87759108,110190.0,110180.0,1e-08]
[1762044662192,4.88659108,110190.0,110180.0,1e-08]
[1762044670968,4.87759108,110190.0,110180.0,1e-08]
[1762044671351,4.87797287,110190.0,110180.0,1e-08]
[1762044672358,4.85330781,110190.0,110180.0,1e-08]
[1762044672557,4.83128781,110190.0,110180.0,0.01542001]
[1762044672765,3.89780004,110190.0,110180.0,0.01542001]
[1762044672999,3.87051408,110190.0,110180.0,1e-08]
[1762044673201,4.62853185,110190.0,110180.0,1e-08]
[1762044673401,4.6040031,110190.0,110180.0,1e-08]
[1762044673565,4.6030031,110190.0,110180.0,1e-08]
[1762044674689,4.6040031,110190.0,110180.0,1e-08]
[1762044674889,4.6030031,110190.0,110180.0,1e-08]
[1762044675091,4.6040031,110190.0,110180.0,1e-08]
[1762044675500,4.8040031,110190.0,110180.0,1e-08]
[1762044677713,4.8030031,110190.0,110180.0,1e-08]
[1762044679169,4.7784731,110190.0,110180.0,0.01542001]
[1762044679381,4.76222928,110190.0,110180.0,0.05059001]
[1762044679801,4.7572609,110190.0,110180.0,0.05059001]
[1762044680428,4.7733009,110190.0,110180.0,0.02674001]
[1762044680628,4.38090004,110190.0,110180.0,1e-08]
[1762044680789,4.40543004,110190.0,110180.0,1e-08]
[1762044680991,4.7988309,110190.0,110180.0,1e-08]
[1762044681411,4.7898309,110190.0,110180.0,1e-08]
[1762044681817,4.79379349,110190.0,110180.0,1e-08]
[1762044682018,4.82208121,110190.0,110180.0,1e-08]
[1762044682320,4.82108121,110190.0,110180.0,1e-08]
[1762044682718,4.79655121,110190.0,110180.0,0.02764001]
[1762044682886,4.38811035,110190.0,110180.0,0.05079001]
[1762044683104,4.40430035,110190.0,110180.0,0.02764001]
[1762044683323,4.43023035,110190.0,110180.0,0.01151001]
[1762044683847,4.40430035,110190.0,110180.0,0.02764001]
[1762044684057,4.7644509,110190.0,110180.0,0.05079001]
[1762044684830,4.7644509,110190.0,110180.0,0.02764001]
[1762044685220,4.5644509,110190.0,110180.0,0.02764001]
[1762044686975,4.5893809,110190.0,110180.0,0.01151001]
[1762044687530,4.19698004,110190.0,110180.0,0.01151001]
[1762044687738,4.17205004,110190.0,110180.0,0.02764001]
[1762044688212,1.17205004,110190.0,110180.0,0.02764001]
[1762044689676,1.17205004,110190.0,110180.0,0.05079001]
[1762044689882,1.15781032,110190.0,110180.0,0.05079001]
[1762044690595,1.13818732,110190.0,110180.0,0.05079001]
[1762044694343,1.13818732,110190.0,110180.0,0.02764001]
[1762044695160,1.53058818,110190.0,110180.0,0.02764001]
[1762044695592,1.55430818,110190.0,110180.0,1e-08]
[1762044695798,1.55330818,110190.0,110180.0,1e-08]
[1762044696015,1.55430818,110190.0,110180.0,1e-08]
[1762044697600,1.55330818,110190.0,110180.0,1e-08]
[1762044698498,1.55430818,110190.0,110180.0,1e-08]
[1762044698931,1.55330818,110190.0,110180.0,1e-08]
[1762044699373,1.572915,110190.0,110180.0,1e-08]
[1762044704668,1.550195,110190.0,110180.0,1e-08]
[1762044705829,1.572915,110190.0,110180.0,1e-08]
[1762044706605,1.60020163,110190.0,110180.0,1e-08]
[1762044707003,1.60616906,110190.0,110180.0,1e-08]
[1762044708180,1.60516906,110190.0,110180.0,1e-08]
[1762044708384,1.60616906,110190.0,110180.0,1e-08]
[1762044708799,1.60516906,110190.0,110180.0,1e-08]
[1762044710690,1.60616906,110190.0,110180.0,1e-08]
[1762044714092,1.60518186,110190.0,110180.0,1e-08]
[1762044714240,1.60618186,110190.0,110180.0,1e-08]
[1762044714451,1.60518186,110190.0,110180.0,1e-08]
[1762044714999,1.60618186,110190.0,110180.0,1e-08]
[1762044717630,1.60518186,110190.0,110180.0,1e-08]
[1762044718244,1.60618186,110190.0,110180.0,1e-08]
[1762044718674,1.60518186,110190.0,110180.0,1e-08]
[1762044718875,1.60618186,110190.0,110180.0,1e-08]
[1762044719084,1.61942061,110190.0,110180.0,1e-08]
[1762044719285,1.62042061,110190.0,110180.0,1e-08]
[1762044721622,1.61942061,110190.0,110180.0,1e-08]
[1762044721973,1.62042061,110190.0,110180.0,1e-08]
[1762044724701,1.61942061,110190.0,110180.0,1e-08]
[1762044726419,1.62042061,110190.0,110180.0,1e-08]
[1762044727590,1.61942061,110190.0,110180.0,1e-08]
[1762044727993,1.62042061,110190.0,110180.0,1e-08]
[1762044732737,4.82042061,110190.0,110180.0,1e-08]
[1762044732957,4.80618186,110190.0,110180.0,1e-08]
[1762044733170,4.86196073,110190.0,110180.0,1e-08]
[1762044734014,4.88038729,110190.0,110180.0,1e-08]
[1762044736324,4.89462727,110190.0,110180.0,1e-08]
[1762044737101,4.90886712,110190.0,110180.0,1e-08]
[1762044738286,4.87620206,110190.0,110180.0,1e-08]
[1762044739466,5.26912441,110190.0,110180.0,1e-08]
[1762044739917,5.26910266,110190.0,110180.0,1e-08]
[1762044741268,5.30528494,110190.0,110180.0,1e-08]
[1762044742128,5.31428494,110190.0,110180.0,1e-08]
[1762044747654,5.30004509,110190.0,110180.0,1e-08]
[1762044757264,5.33271015,110190.0,110180.0,1e-08]
[1762044761524,5.34695,110190.0,110180.0,1e-08]
[1762044761778,5.33271015,110190.0,110180.0,1e-08]
[1762044763232,5.30818563,110190.0,110180.0,1e-08]
[1762044765875,5.35718322,110190.0,110180.0,1e-08]
[1762044771762,5.30818563,110190.0,110180.0,1e-08]
[1762044771899,5.35718322,110190.0,110180.0,1e-08]
[1762044772098,5.30818563,110190.0,110180.0,1e-08]
[1762044773673,5.29918563,110190.0,110180.0,1e-08]
[1762044775693,5.31341361,110190.0,110180.0,1e-08]
[1762044775902,5.29917367,110190.0,110180.0,1e-08]
[1762044778862,5.30817367,110190.0,110180.0,1e-08]
[1762044779636,5.30817015,110190.0,110180.0,1e-08]
[1762044789387,5.32241008,110190.0,110180.0,1e-08]
[1762044789603,5.30817015,110190.0,110180.0,1e-08]
[1762044791080,5.29917015,110190.0,110180.0,1e-08]
[1762044795908,5.30817015,110190.0,110180.0,1e-08]
[1762044797841,5.30817033,110190.0,110180.0,1e-08]
[1762044801422,4.91554064,110190.0,110180.0,1e-08]
[1762044802987,4.92978056,110190.0,110180.0,1e-08]
[1762044803193,4.91554064,110190.0,110180.0,1e-08]
[1762044806429,4.92978056,110190.0,110180.0,1e-08]
[1762044809211,4.92078056,110190.0,110180.0,1e-08]
[1762044810272,4.13568618,110190.0,110180.0,1e-08]
[1762044810474,4.92078056,110190.0,110180.0,1e-08]
[1762044813639,4.13568618,110190.0,110180.0,1e-08]
[1762044813851,4.92078056,110190.0,110180.0,1e-08]
[1762044814469,4.92978056,110190.0,110180.0,1e-08]
[1762044817034,4.91554064,110190.0,110180.0,1e-08]
[1762044820541,4.92978055,110190.0,110180.0,1e-08]
[1762044829621,4.90782236,110190.0,110180.0,1e-08]
[1762044830056,4.92982402,110190.0,110180.0,1e-08]
[1762044831183,4.91558411,110190.0,110180.0,1e-08]
[1762044834707,4.92982402,110190.0,110180.0,1e-08]
[1762044836646,4.92983933,110190.0,110180.0,1e-08]
[1762044840461,4.92083933,110190.0,110180.0,1e-08]
[1762044845509,4.92983933,110190.0,110180.0,1e-08]
[1762044851116,4.92083933,110190.0,110180.0,1e-08]
[1762044852399,4.88465705,110190.0,110180.0,1e-08]
[1762044852645,1.24078035,110190.0,110180.0,0.01617001]
[1762044852830,1.63332754,110190.0,110180.0,1e-08]
[1762044853027,1.65696754,110190.0,110180.0,1e-08]
[1762044853238,1.65596754,110190.0,110180.0,1e-08]
[1762044853545,1.6314321,110190.0,110180.0,1e-08]
[1762044853975,1.6324321,110190.0,110180.0,1e-08]
[1762044854808,1.6314321,110190.0,110180.0,1e-08]
[1762044855042,1.6324321,110190.0,110180.0,1e-08]
[1762044855466,1.61539824,110190.0,110180.0,1e-08]
[1762044856886,1.61439824,110190.0,110180.0,1e-08]
[1762044857297,1.61539824,110190.0,110180.0,1e-08]
[1762044857676,1.61439824,110190.0,110180.0,1e-08]
[1762044858063,1.61539824,110190.0,110180.0,1e-08]
[1762044858268,1.61439824,110190.0,110180.0,1e-08]
[1762044858602,1.61539824,110190.0,110180.0,1e-08]
[1762044859035,1.61439824,110190.0,110180.0,1e-08]
[1762044859246,1.61539824,110190.0,110180.0,1e-08]
[1762044860226,1.61439824,110190.0,110180.0,1e-08]
[1762044860410,1.61539824,110190.0,110180.0,1e-08]
[1762044861230,1.61439824,110190.0,110180.0,1e-08]
[1762044861857,1.61539824,110190.0,110180.0,1e-08]
[1762044862621,1.61439824,110190.0,110180.0,1e-08]
[1762044863407,1.61516818,110190.0,110180.0,1e-08]
[1762044867390,1.61416818,110190.0,110180.0,1e-08]
[1762044867929,1.61516818,110190.0,110180.0,1e-08]
[1762044868746,1.61416818,110190.0,110180.0,1e-08]
[1762044868972,1.61516818,110190.0,110180.0,1e-08]
[1762044870906,1.61416818,110190.0,110180.0,1e-08]
[1762044872549,1.61516818,110190.0,110180.0,1e-08]
[1762044873634,1.61416818,110190.0,110180.0,1e-08]
[1762044874481,1.61516818,110190.0,110180.0,1e-08]
[1762044877502,1.61416818,110190.0,110180.0,1e-08]
[1762044877950,1.61516818,110190.0,110180.0,1e-08]
[1762044878129,1.61416818,110190.0,110180.0,1e-08]
[1762044878693,1.81416818,110190.0,110180.0,1e-08]
[1762044878911,1.81516818,110190.0,110180.0,1e-08]
[1762044880318,1.83219494,110190.0,110180.0,1e-08]
[1762044881341,1.83119494,110190.0,110180.0,1e-08]
[1762044881543,1.83219494,110190.0,110180.0,1e-08]
[1762044882374,1.85673038,110190.0,110180.0,1e-08]
[1762044889068,1.85573038,110190.0,110180.0,1e-08]
[1762044889276,1.85673038,110190.0,110180.0,1e-08]
[1762044890323,1.85673167,110190.0,110180.0,1e-08]
[1762044891015,1.85573167,110190.0,110180.0,1e-08]
[1762044891226,1.85673167,110190.0,110180.0,1e-08]
[1762044892190,1.65573167,110190.0,110180.0,1e-08]
[1762044892391,1.65673167,110190.0,110180.0,1e-08]
[1762044892659,1.64673167,110190.0,110180.0,1e-08]
[1762044892807,1.64773167,110190.0,110180.0,1e-08]
[1762044895536,1.64673167,110190.0,110180.0,1e-08]
[1762044895717,1.64773167,110190.0,110180.0,1e-08]
[1762044898418,1.64673167,110190.0,110180.0,1e-08]
[1762044899509,1.64773167,110190.0,110180.0,1e-08]
[1762044900322,1.64673167,110190.0,110180.0,1e-08]
[1762044900688,1.64773167,110190.0,110180.0,1e-08]
[1762044901197,1.64673167,110190.0,110180.0,1e-08]
[1762044902622,1.64773167,110190.0,110180.0,1e-08]
[1762044903213,1.19093407,110190.0,110180.0,0.05286001]
[1762044903548,1.19093407,110190.0,110180.0,0.05927701]
[1762044903767,1.59853623,110190.0,110180.0,0.05927701]
[1762044903977,1.58150947,110190.0,110180.0,0.05286001]
[1762044904114,1.58150947,110190.0,110180.0,0.02818001]
[1762044904695,1.58250947,110190.0,110180.0,0.02818001]
[1762044905505,1.58050947,110190.0,110180.0,0.02818001]
[1762044905680,1.57950947,110190.0,110180.0,0.02918001]
[1762044905888,1.60254947,110190.0,110180.0,0.00100001]
[1762044906124,1.60354947,110190.0,110180.0,0.00200001]
[1762044906760,1.80254947,110190.0,110180.0,0.00200001]
[1762044906934,1.80354947,110190.0,110180.0,0.00200001]
[1762044907268,1.80254947,110190.0,110180.0,0.00200001]
[1762044907462,1.80354947,110190.0,110180.0,0.00200001]
[1762044908330,1.80254947,110190.0,110180.0,0.00200001]
[1762044909484,1.80354947,110190.0,110180.0,0.00200001]
[1762044910216,1.80254947,110190.0,110180.0,0.00200001]
[1762044910413,1.80354947,110190.0,110180.0,0.00200001]
[1762044913112,1.80254947,110190.0,110180.0,0.00200001]
[1762044913539,1.80354947,110190.0,110180.0,0.00200001]
[1762044916177,1.80254947,110190.0,110180.0,0.00200001]
[1762044916296,1.80354947,110190.0,110180.0,0.00200001]
[1762044917541,5.23754703,110190.0,110180.0,1e-08]
[1762044917782,5.22051707,110190.0,110180.0,1e-08]
[1762044918592,5.22051707,110190.0,110150.0,0.03616]
[1762044918593,0.1815541,110160.0,110150.0,0.03616]
[1762044918825,0.96641842,110160.0,110150.0,0.03620813]
[1762044919040,0.98873842,110160.0,110150.0,0.05221813]
[1762044919253,0.98873842,110160.0,110150.0,0.02753813]